bitfinex/quotes_ETHUSD_20240711
["timestamp","ask_amount","ask_price","bid_price","bid_amount"]
[1720713656972,1.31167919,3123.0,3121.5,0.06406716]
[1720713656973,3.07613959,3122.9,3121.5,0.06406716]
[1720713657136,3.07613959,3122.9,3122.1,3.20293]
[1720713657137,2.4203,3122.9,3122.1,3.20293]
[1720713657317,2.4203,3122.9,3122.4,3.20265]
[1720713657514,0.42261941,3123.3,3122.4,3.522915]
[1720713658673,4.205787,3123.2,3122.0,3.20306]
[1720713658849,4.205787,3123.2,3121.9,0.06404663]
[1720713658850,2.4405,3123.2,3121.9,0.06404663]
[1720713659032,2.4405,3123.2,3122.5,3.2025]
[1720713659369,0.9844943,3123.8,3122.6,3.20244]
[1720713659370,3.09682953,3123.7,3122.6,3.20244]
[1720713659839,3.09682953,3123.7,3122.6,3.20237]
[1720713660162,3.09682953,3123.7,3122.2,3.036]
[1720713660163,3.09682953,3123.7,3122.8,3.20223]
[1720713660317,3.09682953,3123.7,3123.0,3.20204]
[1720713660318,2.4405,3123.7,3123.0,3.20204]
[1720713660712,0.65632953,3124.1,3123.2,3.20182]
[1720713661018,3.09682953,3124.2,3123.4,3.20162]
[1720713661223,3.09682953,3124.2,3123.4,3.20080961]
[1720713661224,2.4405,3124.2,3123.4,3.20080961]
[1720713661572,38.63406272,3124.3,3123.7,3.20131]
[1720713661718,38.63406272,3124.3,3123.5,3.2015]
[1720713662440,38.63406272,3124.3,3123.5,3.20145]
[1720713662655,38.63406272,3124.3,3123.4,0.64026296]
[1720713662871,38.63406272,3124.3,3122.6,6.23837]
[1720713662872,39.29039225,3124.3,3122.6,6.23837]
[1720713663076,39.29039225,3124.3,3121.6,5.3389]
[1720713663077,0.9844943,3123.7,3121.6,5.3389]
[1720713663218,1.64082383,3123.4,3121.8,3.20323]
[1720713663413,1.64082383,3123.4,3121.5,3.20356]
[1720713663414,0.65632953,3123.1,3121.7,3.20335]
[1720713663658,0.65632953,3123.1,3121.5,3.20353]
[1720713663659,0.95481248,3123.0,3122.0,3.20305]
[1720713663818,0.29848295,3123.0,3121.8,0.320335]
[1720713664252,0.29848295,3123.0,3122.1,3.20295]
[1720713664460,0.29848295,3123.0,3121.6,3.036]
[1720713664669,0.29848295,3123.0,3121.2,2.3029]
[1720713664670,0.95481248,3123.0,3121.5,3.20352]
[1720713664822,0.74393068,3122.9,3121.6,3.523812]
[1720713665020,0.19393068,3122.9,3121.9,3.20311]
[1720713665346,2.98482953,3123.2,3122.1,3.20293]
[1720713665546,2.3285,3123.2,3122.3,3.20268]
[1720713665779,2.3285,3123.2,3122.4,0.06404364]
[1720713665926,0.9844943,3123.5,3122.5,3.20253]
[1720713665927,0.65632953,3123.5,3122.5,3.20253]
[1720713666254,0.65632953,3123.6,3122.6,0.06404024]
[1720713666463,0.65632953,3123.5,3122.6,0.06404024]
[1720713666629,1.05121191,3123.6,3122.6,3.20237]
[1720713666834,0.65632953,3123.6,3122.9,3.20214]
[1720713667026,0.65632953,3123.6,3122.7,0.06403973]
[1720713667027,38.63406272,3124.3,3122.7,2.3384]
[1720713667028,0.65632953,3124.0,3122.7,2.3384]
[1720713667226,0.9844943,3124.1,3123.0,3.20203]
[1720713667227,0.65632953,3124.1,3123.0,3.20203]
[1720713667440,0.65632953,3124.1,3123.1,3.20194]
[1720713667733,39.61855702,3124.3,3123.1,3.20194]
[1720713667734,0.65632953,3124.2,3123.3,3.20173]
[1720713667953,3.87310825,3124.1,3123.1,3.20187]
[1720713668336,38.63406272,3124.3,3123.3,3.20167]
[1720713668864,38.63406272,3124.3,3123.4,3.20163]
[1720713669023,38.63406272,3124.3,3122.5,7.29]
[1720713669024,38.63406272,3124.3,3123.6,3.20134]
[1720713669223,38.63406272,3124.3,3123.8,3.20122]
[1720713669556,38.63406272,3124.3,3123.4,3.20161]
[1720713669739,3.21677872,3124.2,3123.5,3.20151]
[1720713669942,38.63406272,3124.3,3124.1,3.20083]
[1720713670161,38.63406272,3124.3,3124.1,6.40167]
[1720713670537,38.63406272,3124.3,3124.1,3.20083]
[1720713670750,38.63406272,3124.3,3123.5,2.4768]
[1720713670952,38.63406272,3124.3,3124.2,6.40162]
[1720713672433,38.63406272,3124.3,3124.2,3.20081]
[1720713673059,38.63406272,3124.3,3123.6,1.427937]
[1720713673060,38.63406272,3124.3,3123.6,0.877937]
[1720713673373,38.63406272,3124.3,3122.9,2.4678]
[1720713673677,38.63406272,3124.3,3124.0,3.20092]
[1720713673825,38.63406272,3124.3,3123.7,3.20132]
[1720713674030,38.63406272,3124.3,3123.1,7.29]
[1720713674276,38.63406272,3124.3,3122.9,3.2021]
[1720713674445,3.21677872,3124.2,3122.8,3.20224]
[1720713674642,3.21677872,3124.2,3123.1,3.20186]
[1720713674857,38.63406272,3124.3,3122.8,3.101]
[1720713675171,38.63406272,3124.3,3123.5,3.20145]
[1720713675328,38.63406272,3124.3,3123.0,3.20198]
[1720713675530,38.63406272,3124.3,3122.9,3.20205]
[1720713675835,38.63406272,3124.3,3123.3,3.20164]
[1720713676171,38.63406272,3124.3,3123.5,3.20146]
[1720713676327,38.63406272,3124.3,3123.3,3.20171]
[1720713676328,38.63406272,3124.3,3123.3,3.20173]
[1720713676528,38.63406272,3124.3,3123.6,3.20135]
[1720713676763,38.63406272,3124.3,3123.4,3.20155]
[1720713676994,38.63406272,3124.3,3123.5,3.20149]
[1720713677160,38.63406272,3124.3,3123.6,3.20142]
[1720713677479,38.63406272,3124.3,3123.6,3.841717]
[1720713677631,38.63406272,3124.3,3123.6,3.20139]
[1720713677830,38.63406272,3124.3,3122.5,7.45]
[1720713677831,38.63406272,3124.3,3123.5,3.20153]
[1720713678026,38.63406272,3124.3,3122.8,3.2022]
[1720713678345,38.63406272,3124.3,3123.0,3.20202]
[1720713678543,38.63406272,3124.3,3122.5,7.45]
[1720713678757,3.21677872,3124.2,3122.6,3.94742]
[1720713679054,3.21677872,3124.2,3122.7,3.20227]
[1720713679055,2.3599,3124.1,3122.7,3.20227]
[1720713679570,2.3599,3124.1,3122.9,3.20213]
[1720713679786,2.3599,3124.1,3123.1,3.20192]
[1720713680075,2.3599,3124.1,3122.5,7.45]
[1720713680231,0.62340589,3124.0,3122.3,3.20267]
[1720713680429,0.62340589,3124.0,3122.1,3.20293]
[1720713680430,1.83078609,3124.0,3122.1,3.20289]
[1720713680626,2.2904,3123.7,3122.1,3.20289]
[1720713680830,2.9477802,3123.7,3122.2,3.2028]
[1720713681074,0.55,3123.6,3122.2,3.2028]
[1720713681367,0.0008121,3123.1,3122.2,3.843369]
[1720713681678,0.0008121,3123.1,3122.2,0.640569]
[1720713681963,0.0008121,3123.1,3122.5,3.20248]
[1720713682178,0.0008121,3123.1,3121.9,3.2031]
[1720713682179,0.0008121,3123.1,3122.3,6.40538]
[1720713682473,0.0008121,3123.1,3122.5,3.20246]
[1720713683044,0.0008121,3123.1,3122.3,3.2027]
[1720713683666,0.0008121,3123.1,3122.5,3.20246]
[1720713683869,0.0008121,3123.1,3122.5,6.725196]
[1720713684168,0.0008121,3123.1,3121.9,3.20307]
[1720713684376,0.0008121,3123.1,3122.0,3.20304]
[1720713684671,0.0008121,3123.1,3122.1,3.20296]
[1720713685179,0.0008121,3123.1,3122.4,3.20258]
[1720713685333,0.0008121,3123.1,3122.4,3.2026]
[1720713685536,0.0008121,3123.1,3122.4,3.52286]
[1720713685729,2.4742,3123.0,3122.0,3.203]
[1720713686048,2.4742,3123.0,3121.7,7.45]
[1720713686344,2.4742,3123.0,3122.1,3.20292]
[1720713686558,2.4742,3123.0,3122.1,3.20291]
[1720713687565,2.4742,3123.0,3122.2,3.20285]
[1720713687746,2.4742,3123.0,3122.1,3.20291]
[1720713688069,2.4742,3123.0,3122.1,3.843494]
[1720713688371,2.4742,3123.0,3122.2,3.20279]
[1720713688982,2.4742,3123.0,3122.0,3.20298]
[1720713689337,2.4742,3123.0,3122.2,3.20285]
[1720713689769,2.4742,3123.0,3122.3,3.2027]
[1720713689937,2.4742,3123.0,3122.3,3.20275]
[1720713690569,2.4742,3123.0,3121.8,3.03]
[1720713690570,2.4742,3123.0,3121.9,3.20309]
[1720713690888,2.72170121,3123.0,3122.0,3.20307]
[1720713691047,2.72170121,3123.0,3122.0,3.203]
[1720713691236,2.72170121,3123.0,3121.8,3.03]
[1720713691429,2.4742,3123.0,3122.2,3.20278]
[1720713692534,2.4742,3123.0,3122.4,3.20265]
[1720713693036,2.4742,3123.0,3122.5,3.20249]
[1720713693445,2.4742,3123.0,3122.5,6.40498]
[1720713693872,2.4742,3123.0,3122.6,3.20245]
[1720713694282,2.4742,3123.0,3122.2,3.03]
[1720713694283,2.4742,3123.0,3122.4,3.2026]
[1720713694985,2.4742,3123.0,3122.5,3.20249]
[1720713695276,2.4742,3123.0,3122.4,3.2026]
[1720713695692,2.4742,3123.0,3122.4,3.20259]
[1720713695855,2.72170121,3123.0,3121.8,3.03]
[1720713696057,2.72170121,3123.0,3122.0,3.20302]
[1720713696244,2.72170121,3123.0,3122.0,6.40602]
[1720713696440,2.72170121,3123.0,3121.8,6.23324]
[1720713696441,2.4742,3123.0,3121.8,6.23324]
[1720713696659,2.4742,3123.0,3122.1,3.20291]
[1720713696980,2.4742,3123.0,3122.6,3.20245]
[1720713697197,0.0008121,3123.1,3122.5,3.20248]
[1720713697501,0.0008121,3123.1,3122.3,3.2027]
[1720713697650,0.0008121,3123.1,3122.3,3.84326]
[1720713697850,0.0008121,3123.1,3122.1,3.2029]
[1720713698190,0.0008121,3123.1,3122.2,3.20284]
[1720713698416,0.0008121,3123.1,3122.4,3.20266]
[1720713698893,0.0008121,3123.1,3122.4,3.2026]
[1720713699190,0.0008121,3123.1,3122.5,0.32026]
[1720713699391,0.0008121,3123.1,3122.4,3.20256]
[1720713699591,0.0008121,3123.1,3122.2,3.2028]
[1720713699890,0.0008121,3123.1,3122.4,3.20258]
[1720713700364,0.0008121,3123.1,3122.4,6.40518]
[1720713700571,0.0008121,3123.1,3122.4,3.20258]
[1720713701214,0.0008121,3123.1,3122.3,3.20274]
[1720713701494,2.98429625,3123.2,3121.7,3.20331]
[1720713701704,0.65619625,3123.1,3121.9,3.20311]
[1720713701998,0.65619625,3123.1,3121.8,3.8759272]
[1720713702217,0.65619625,3123.1,3121.8,3.8759172]
[1720713702384,1.76518251,3123.0,3121.8,3.8759172]
[1720713702586,1.16395394,3123.0,3122.0,3.20306]
[1720713703114,2.98429625,3123.2,3121.9,0.38759172]
[1720713703321,2.3281,3123.2,3121.9,0.38759172]
[1720713703686,1.10885617,3123.1,3122.2,3.20281]
[1720713703878,2.98429625,3123.2,3122.3,3.20276]
[1720713704117,2.3281,3123.2,3122.4,0.640557]
[1720713704490,2.3281,3123.2,3122.5,3.20249]
[1720713705307,2.3281,3123.2,3122.5,3.20246]
[1720713705509,2.3281,3123.2,3122.5,6.40494]
[1720713705836,2.3281,3123.2,3122.5,3.20246]
[1720713706002,2.3281,3123.2,3122.4,0.640557]
[1720713706205,2.3281,3123.2,3122.6,3.20245]
[1720713707403,1.10877357,3123.1,3122.4,3.20258]
[1720713707606,2.3281,3123.2,3121.9,0.38759172]
[1720713707607,1.10877334,3123.0,3121.9,3.59072172]
[1720713707817,1.10886188,3122.9,3121.9,0.38759172]
[1720713708005,1.10886188,3122.8,3121.9,0.38759172]
[1720713708220,1.10886188,3123.0,3122.0,3.56210117]
[1720713708439,1.10890708,3122.9,3122.0,6.76508117]
[1720713708637,1.10890708,3122.8,3122.0,6.76508117]
[1720713708853,0.65691494,3123.1,3122.0,3.56206117]
[1720713709127,1.10890276,3123.0,3122.0,3.56206117]
[1720713709333,1.10890276,3122.9,3122.0,0.35908117]
[1720713709530,1.10890276,3122.9,3121.4,10.48]
[1720713709531,2.3983,3122.7,3121.4,7.45]
[1720713709756,1.10890276,3122.6,3121.3,3.20372]
[1720713710372,0.65691494,3122.5,3121.3,3.20372]
[1720713710539,1.10890276,3122.4,3121.4,0.320372]
[1720713710744,1.10890276,3122.4,3121.4,3.523972]
[1720713711341,0.51494901,3122.5,3121.5,3.20358]
[1720713711774,1.10913859,3122.4,3121.5,3.20358]
[1720713712069,0.51494901,3122.5,3121.4,0.320372]
[1720713712070,1.10913859,3122.3,3121.4,0.320372]
[1720713712232,0.51494901,3122.5,3121.1,3.20391]
[1720713712233,1.10913859,3122.2,3121.1,3.20391]
[1720713712574,1.10913859,3122.1,3121.0,3.20409]
[1720713712733,1.10913859,3122.2,3121.0,3.20409]
[1720713712935,1.76605353,3122.2,3121.0,3.20409]
[1720713713165,2.3411,3122.3,3120.9,3.20412]
[1720713713166,1.10913859,3122.1,3120.9,3.20412]
[1720713713368,1.76605353,3122.2,3120.9,0.640852]
[1720713713572,1.10913859,3122.1,3120.7,3.2044]
[1720713713737,1.76605353,3122.1,3120.7,3.2044]
[1720713713937,1.10913859,3122.0,3120.5,3.20455]
[1720713714248,1.10913859,3122.0,3120.8,3.2043]
[1720713714448,1.10913859,3122.0,3120.9,3.2042]
[1720713714674,1.10913859,3122.0,3120.7,6.40868]
[1720713714675,0.65691494,3122.0,3120.7,6.40868]
[1720713714874,1.10913859,3122.1,3120.7,6.40868]
[1720713714875,1.28594898,3121.9,3120.8,3.845148]
[1720713715075,1.10934363,3121.8,3120.8,3.845148]
[1720713715375,2.4353,3121.7,3120.8,0.640868]
[1720713715535,2.4353,3121.7,3120.4,3.20469]
[1720713715736,1.10945992,3121.6,3119.8,3.03]
[1720713715951,1.10945992,3121.6,3119.8,6.23524]
[1720713715952,1.16637486,3121.5,3119.8,6.23524]
[1720713716297,2.4777,3121.4,3119.9,3.2052]
[1720713716505,2.4777,3121.4,3120.0,3.20511]
[1720713716652,0.24777,3121.3,3120.1,0.641031]
[1720713716999,0.24777,3121.3,3119.1,9.9322]
[1720713717000,5.8547,3121.1,3119.4,6.23573]
[1720713717306,3.377,3121.0,3119.4,6.23573]
[1720713717452,0.55,3120.9,3119.4,6.23573]
[1720713717894,2.3252,3120.8,3119.2,3.20587]
[1720713718102,2.3252,3120.8,3119.4,3.20572]
[1720713718395,0.35321149,3120.7,3119.5,0.320572]
[1720713718554,2.3252,3120.8,3119.8,3.20533]
[1720713718760,2.3252,3120.8,3119.6,3.20545]
[1720713718970,2.3252,3120.8,3119.7,3.20543]
[1720713719269,2.3252,3120.8,3119.5,3.526202]
[1720713719579,2.55772,3120.8,3119.6,3.8787202]
[1720713719953,2.3252,3120.8,3119.8,3.20527]
[1720713720193,2.3252,3120.8,3119.9,3.20523]
[1720713720390,2.3252,3120.8,3120.2,3.20488]
[1720713720602,2.3252,3120.8,3120.2,3.20485]
[1720713720901,2.3252,3120.8,3119.7,3.03]
[1720713721069,2.3252,3120.8,3119.8,3.89609702]
[1720713721252,2.3252,3120.8,3119.6,3.8787002]
[1720713721807,2.3252,3120.8,3119.8,3.2053]
[1720713722509,2.3252,3120.8,3120.0,3.20506]
[1720713722658,2.3252,3120.8,3119.8,3.20528]
[1720713722659,2.3252,3120.8,3119.8,3.20525]
[1720713723086,2.3252,3120.8,3120.2,3.20484]
[1720713723301,2.3252,3120.8,3120.5,3.20454]
[1720713723512,0.65691494,3121.7,3120.6,3.20451]
[1720713723513,2.3823,3121.3,3120.6,3.20451]
[1720713723825,2.3823,3121.3,3120.9,3.20413]
[1720713724040,2.4214,3122.0,3120.9,3.20413]
[1720713724321,2.4214,3122.0,3121.1,3.20396]
[1720713724484,2.4214,3122.0,3121.2,0.320396]
[1720713724694,2.4214,3122.0,3121.3,3.20373]
[1720713724887,2.4214,3122.0,3120.5,3.03]
[1720713724888,2.4214,3122.0,3120.9,3.20414]
[1720713725082,2.4214,3122.0,3121.0,0.06407389]
[1720713725330,1.68884015,3122.8,3121.3,3.03]
[1720713725331,1.03192521,3122.8,3121.3,3.03]
[1720713725645,1.31465827,3123.1,3122.0,3.20299]
[1720713725646,2.4594,3122.7,3122.0,3.20299]
[1720713725921,0.00082839,3123.1,3122.4,3.20264]
[1720713726281,0.00082839,3123.1,3122.5,3.20255]
[1720713726681,0.00082839,3123.1,3122.3,3.20271]
[1720713727020,0.00082839,3123.1,3122.0,3.203]
[1720713727279,0.00082839,3123.1,3122.1,0.3203]
[1720713727589,0.00082839,3123.1,3122.2,3.20283]
[1720713727790,0.00082839,3123.1,3122.3,0.06405267]
[1720713728014,0.00082839,3123.1,3122.4,3.20265]
[1720713728213,0.00082839,3123.1,3122.1,0.3203]
[1720713728416,0.00082839,3123.1,3122.2,3.20285]
[1720713729126,0.00082839,3123.1,3121.7,3.03]
[1720713729127,0.00082839,3123.1,3121.9,3.20317]
[1720713729329,2.4594,3123.2,3121.9,3.20317]
[1720713729489,2.4594,3123.2,3121.7,6.2333]
[1720713729696,2.4594,3123.2,3121.8,3.20327]
[1720713730014,0.31163149,3123.1,3121.8,4.146927]
[1720713730214,2.3495,3123.0,3121.4,3.5066]
[1720713730530,2.3495,3123.0,3121.4,0.303]
[1720713730531,2.3495,3122.8,3121.4,0.303]
[1720713730689,2.3495,3122.6,3121.2,3.20382]
[1720713730894,0.55,3122.5,3121.0,3.20401]
[1720713731092,2.2806,3122.4,3121.0,3.20401]
[1720713731624,2.2806,3122.4,3121.1,3.20398]
[1720713731788,2.2806,3122.4,3120.9,3.03]
[1720713731993,2.2806,3122.4,3120.6,7.45]
[1720713731994,2.2806,3122.4,3121.6,3.20347]
[1720713732187,2.2806,3122.4,3121.8,3.20326]
[1720713732415,2.2806,3122.4,3121.6,3.20347]
[1720713732852,1.2970039,3123.1,3122.1,3.20296]
[1720713732853,2.4893,3123.0,3122.1,3.20296]
[1720713735416,2.4893,3123.0,3121.9,3.20309]
[1720713735616,0.28009315,3122.9,3121.9,3.826399]
[1720713735914,0.28009315,3122.9,3122.1,3.20296]
[1720713736519,0.28009315,3122.9,3121.9,0.623309]
[1720713736827,0.28009315,3122.9,3121.6,3.20347]
[1720713737014,0.28009315,3122.9,3121.3,10.48]
[1720713737015,2.4655,3122.8,3121.3,10.48]
[1720713737214,2.4655,3122.8,3121.0,0.303]
[1720713737215,2.4655,3122.7,3121.2,3.20388]
[1720713737419,3.0155,3122.7,3121.2,3.20388]
[1720713737656,3.0155,3122.7,3121.3,3.20378]
[1720713737855,3.0155,3122.7,3121.1,3.20391]
[1720713737856,2.4913,3122.5,3121.1,3.20391]
[1720713738034,0.55,3122.4,3121.1,3.20391]
[1720713738229,0.55,3122.4,3121.2,3.20389]
[1720713738431,2.4913,3122.5,3121.4,3.20367]
[1720713738860,2.4913,3122.5,3121.5,3.20356]
[1720713739172,2.4913,3122.5,3121.8,3.20321]
[1720713739322,2.4913,3122.5,3121.6,0.320356]
[1720713740128,2.4913,3122.5,3121.3,6.23374]
[1720713740129,2.4913,3122.5,3121.3,3.03]
[1720713740376,2.4913,3122.5,3121.2,3.20383]
[1720713740527,0.55,3122.4,3121.1,3.20393]
[1720713740836,0.55,3122.4,3121.3,3.20378]
[1720713741372,2.4913,3122.5,3121.0,0.303]
[1720713741571,2.4913,3122.5,3121.6,3.20342]
[1720713741931,2.4913,3122.5,3121.4,3.20359]
[1720713742132,2.4913,3122.5,3121.5,3.20353]
[1720713742380,2.4913,3122.5,3121.6,3.20347]
[1720713742567,2.4913,3122.5,3121.7,3.20337]
[1720713742766,2.4913,3122.5,3121.9,3.20317]
[1720713742967,2.4913,3122.5,3121.8,0.320337]
[1720713743181,2.4913,3122.5,3121.3,3.20375]
[1720713743182,2.4913,3122.5,3121.3,3.03]
[1720713743457,2.4913,3122.5,3121.6,3.20342]
[1720713743657,2.4913,3122.5,3121.8,6.4064]
[1720713743871,2.4913,3122.5,3121.8,6.40636]
[1720713744379,2.4913,3122.5,3121.9,3.20311]
[1720713744680,2.4913,3122.5,3122.0,0.640629]
[1720713745358,2.2928,3122.9,3122.0,0.640629]
[1720713745607,2.2928,3122.9,3122.1,3.20295]
[1720713746387,2.2928,3122.9,3122.1,3.20291]
[1720713747165,2.2928,3122.9,3122.1,3.2029]
[1720713747398,2.2928,3122.9,3122.2,3.20285]
[1720713747585,2.2928,3122.9,3122.0,3.20298]
[1720713747783,2.2928,3122.9,3121.7,6.2333]
[1720713748136,2.94713969,3122.9,3121.3,6.23374]
[1720713748329,2.94713969,3122.9,3121.1,3.53723]
[1720713748330,2.2949,3122.6,3121.1,3.53723]
[1720713748482,2.2949,3122.4,3121.1,3.53723]
[1720713748836,2.2949,3122.4,3121.1,0.3333]
[1720713748996,2.2949,3122.4,3121.4,3.20363]
[1720713749197,2.2949,3122.4,3121.5,3.826893]
[1720713749424,2.2949,3122.4,3121.5,0.623363]
[1720713749730,2.2949,3122.4,3121.5,3.826933]
[1720713749959,2.2949,3122.4,3121.5,0.623363]
[1720713750137,2.2949,3122.4,3121.3,3.03]
[1720713750646,1.9949,3122.4,3121.3,3.03]
[1720713750850,1.9949,3122.4,3121.1,0.3333]
[1720713751804,1.9949,3122.4,3121.1,3.53724]
[1720713752307,1.10920975,3122.3,3121.1,0.3333]
[1720713752536,1.48509947,3122.2,3121.1,0.3333]
[1720713752817,0.37588972,3122.2,3121.1,0.3333]
[1720713753024,2.64968749,3122.4,3121.1,3.53728]
[1720713753329,1.76402633,3122.3,3121.1,0.3333]
[1720713753567,1.76402633,3122.2,3121.1,0.3333]
[1720713753720,1.10923884,3122.1,3121.1,0.3333]
[1720713753917,3.57698749,3122.0,3120.5,7.33]
[1720713754156,2.2723,3121.7,3120.5,7.33]
[1720713754335,0.65478749,3121.5,3120.5,7.33]
[1720713754550,0.65478749,3121.5,3120.0,3.03]
[1720713754551,1.10923884,3121.4,3120.0,3.03]
[1720713754753,0.65478749,3121.3,3120.1,0.623514]
[1720713754952,1.10923884,3121.2,3120.1,0.623514]
[1720713755360,0.65478749,3121.6,3120.4,3.03]
[1720713755656,2.92708749,3121.7,3120.4,3.03]
[1720713755969,1.76427957,3121.6,3120.4,3.03]
[1720713756327,1.10949208,3121.5,3120.4,3.03]
[1720713756559,0.65478749,3121.6,3120.4,3.03]
[1720713756866,2.2723,3121.7,3120.5,7.032532]
[1720713757064,2.2723,3121.7,3120.6,3.20449]
[1720713757387,0.65478749,3121.9,3120.6,2.46928159]
[1720713757586,0.65478749,3122.1,3120.8,3.03]
[1720713757893,1.10929624,3122.0,3121.3,3.20378]
[1720713758100,2.3287,3122.2,3121.3,0.320378]
[1720713758243,1.10924465,3122.1,3121.3,0.320378]
[1720713758445,2.3287,3122.2,3121.3,0.320378]
[1720713758683,2.3287,3122.2,3121.2,3.03]
[1720713758684,1.10924908,3122.1,3120.9,3.20413]
[1720713758902,3.48747762,3122.0,3120.5,7.953472]
[1720713759198,3.48747762,3122.0,3120.5,0.623472]
[1720713759199,1.10936116,3121.9,3120.5,0.623472]
[1720713759486,0.65478749,3121.7,3120.5,0.623472]
[1720713759687,1.10936116,3121.6,3120.5,3.827982]
[1720713759872,1.10936116,3121.6,3120.6,0.7032642]
[1720713760042,1.10936116,3121.6,3120.5,3.20456]
[1720713760243,1.76414865,3121.7,3120.4,3.20465]
[1720713760468,1.53218124,3121.9,3120.2,6.23485]
[1720713760469,1.76414865,3121.6,3120.2,6.23485]
[1720713760690,0.65478749,3121.3,3120.2,6.23485]
[1720713760994,2.31414865,3121.2,3119.8,3.03]
[1720713761229,4.80578164,3121.1,3119.8,0.623547]
[1720713761360,3.69642048,3121.1,3119.8,0.623547]
[1720713761680,3.04163299,3121.1,3119.8,6.41052]
[1720713761985,2.3743,3121.1,3120.2,3.20486]
[1720713762548,2.3743,3121.1,3120.2,3.20485]
[1720713763500,2.3743,3121.1,3119.9,3.20521]
[1720713763861,2.3743,3121.1,3119.8,3.03]
[1720713764061,2.3743,3121.1,3120.2,3.20487]
[1720713764463,2.3743,3121.1,3120.3,3.20476]
[1720713764790,2.3743,3121.1,3120.0,3.20505]
[1720713765350,2.3743,3121.1,3119.9,0.303]
[1720713765905,0.65478749,3121.0,3119.6,3.03]
[1720713766192,0.65478749,3120.9,3119.2,6.23587]
[1720713766374,3.12028749,3120.7,3119.3,3.20578]
[1720713766699,3.12028749,3120.7,3119.2,3.03]
[1720713766993,2.4655,3120.7,3119.8,3.20532]
[1720713767144,2.4655,3120.7,3119.9,0.320532]
[1720713767347,2.4655,3120.7,3120.0,3.20512]
[1720713767979,2.4655,3120.7,3119.9,0.320532]
[1720713768180,2.4655,3120.7,3120.1,3.20502]
[1720713768702,2.4655,3120.7,3119.9,0.320532]
[1720713768866,2.4655,3120.7,3119.9,3.20521]
[1720713769066,2.4655,3120.7,3120.0,3.20511]
[1720713769266,3.07605571,3121.2,3120.0,3.26920361]
[1720713769464,2.422,3121.2,3120.1,3.20497]
[1720713769668,3.07605571,3121.2,3120.3,3.20481]
[1720713770005,2.82771393,3121.2,3120.3,3.20481]
[1720713770586,2.82771393,3121.2,3120.2,3.20489]
[1720713770766,2.82771393,3121.2,3120.0,3.20506]
[1720713770964,0.65405571,3121.1,3120.0,3.20506]
[1720713771395,2.82771393,3121.2,3120.0,3.20506]
[1720713771556,0.93659813,3121.1,3120.0,3.20506]
[1720713771898,0.93659813,3121.1,3119.9,3.20517]
[1720713772524,4.15264206,3121.0,3119.1,7.48]
[1720713772653,1.76364206,3120.9,3119.6,3.20547]
[1720713772849,0.65382674,3120.9,3119.6,3.20547]
[1720713773087,1.05618343,3120.8,3119.6,3.846575]
[1720713774019,0.65382674,3120.7,3119.6,3.20547]
[1720713774308,0.65382674,3120.7,3119.4,3.20572]
[1720713774309,2.4705,3120.7,3119.4,3.20567]
[1720713775478,2.4705,3120.7,3119.6,3.20552]
[1720713775678,2.92124235,3120.7,3119.6,3.846639]
[1720713775881,2.92124235,3120.7,3119.6,0.641119]
[1720713776319,2.92124235,3120.7,3119.6,3.846649]
[1720713777019,2.92124235,3120.7,3119.6,0.641119]
[1720713777542,1.10988517,3120.6,3119.6,0.641119]
[1720713777718,2.92124235,3120.7,3119.6,0.641119]
[1720713777921,0.35750691,3120.6,3119.6,0.641119]
[1720713778417,1.10993048,3120.5,3119.3,3.20581]
[1720713778627,1.10995306,3120.4,3119.3,3.20581]
[1720713778798,1.01036946,3120.6,3119.3,3.20581]
[1720713778981,1.10996506,3120.5,3119.3,3.20581]
[1720713779184,2.347,3120.3,3118.9,3.20616]
[1720713779424,2.347,3120.3,3118.8,3.20627]
[1720713779631,1.11003774,3120.2,3118.8,3.20627]
[1720713779784,2.347,3120.3,3118.8,3.20627]
[1720713779982,1.11005611,3120.2,3119.0,3.20615]
[1720713780222,1.52104689,3120.1,3119.0,0.320615]
[1720713780383,0.41099187,3120.1,3119.0,0.320615]
[1720713780588,2.347,3120.0,3119.0,0.320615]
[1720713780789,1.1101654,3119.9,3118.7,3.20645]
[1720713780985,1.1101654,3119.9,3118.6,3.20648]
[1720713780986,1.1101654,3119.8,3118.6,3.20648]
[1720713781185,2.347,3120.0,3118.8,3.20633]
[1720713781419,2.347,3120.0,3118.8,3.20627]
[1720713781620,2.347,3120.0,3118.9,3.20625]
[1720713781920,2.347,3120.0,3119.0,3.847402]
[1720713782137,2.4874,3120.5,3119.2,3.2059]
[1720713782286,1.10991039,3120.4,3119.1,2.277]
[1720713782483,2.4874,3120.5,3119.1,2.277]
[1720713782685,2.4874,3120.5,3119.0,3.20613]
[1720713782686,1.10993764,3120.4,3119.0,3.20613]
[1720713782919,2.4874,3120.5,3119.1,0.320613]
[1720713783096,1.10993681,3120.4,3119.1,0.320613]
[1720713783300,1.10993681,3120.4,3118.9,3.20624]
[1720713783633,1.11001647,3120.3,3118.9,3.20624]
[1720713783858,1.11001647,3120.2,3118.7,5.48337]
[1720713784025,2.4381,3120.1,3118.6,3.20653]
[1720713784344,1.11001647,3120.0,3118.7,3.20645]
[1720713784500,1.11001647,3120.0,3118.8,0.641294]
[1720713784701,1.11001647,3120.0,3118.1,7.47]
[1720713784914,8.97656255,3119.8,3117.7,2.3133]
[1720713785128,1.11001647,3119.7,3117.8,3.20729]
[1720713785301,1.11001647,3119.7,3118.0,3.20718]
[1720713785302,1.66001647,3119.7,3118.0,3.20718]
[1720713785501,1.11001647,3119.6,3118.0,3.20718]
[1720713785703,0.2312879,3119.5,3118.1,0.320718]
[1720713785941,1.11001647,3119.4,3118.1,0.320718]
[1720713786309,2.4152,3119.3,3118.1,3.527738]
[1720713786618,2.4152,3119.3,3118.1,0.320718]
[1720713786804,1.11039233,3119.2,3117.7,3.20747]